bitfinex/quotes_ETHUSD_20240811
["timestamp","ask_amount","ask_price","bid_price","bid_amount"]
[1723376051316,0.2,2665.6,2665.5,2.62612]
[1723376051507,0.2,2665.6,2665.5,5.25226]
[1723376053536,0.1,2665.6,2665.5,5.25226]
[1723376054157,0.2,2665.6,2665.5,5.25226]
[1723376054369,0.1,2665.6,2665.5,5.25226]
[1723376056859,0.2,2665.6,2665.5,5.25226]
[1723376057718,0.1,2665.6,2665.5,5.25226]
[1723376058145,0.1,2665.9,2665.8,5.2517]
[1723376058855,0.1,2665.9,2665.8,2.62585]
[1723376059159,3.7871,2665.9,2665.8,2.62585]
[1723376059661,0.2,2665.7,2665.6,2.62598]
[1723376060016,0.1,2665.6,2665.5,2.62614]
[1723376060353,0.1,2665.6,2665.5,2.62609]
[1723376060866,0.1,2665.7,2665.5,2.62609]
[1723376061056,0.1,2665.6,2665.5,2.62609]
[1723376062849,0.1,2665.6,2665.4,2.62624]
[1723376063167,0.1,2665.6,2665.5,2.62614]
[1723376063523,0.2,2665.7,2665.6,2.62605]
[1723376064621,0.2,2665.7,2665.6,5.2521]
[1723376065135,0.1,2665.8,2665.7,5.2519]
[1723376066028,0.1,2665.9,2665.8,5.2517]
[1723376066663,0.1,2665.9,2665.8,2.62585]
[1723376067158,3.9253,2665.9,2665.7,2.62589]
[1723376067366,3.9253,2665.9,2665.8,2.62585]
[1723376067955,0.1,2665.8,2665.7,2.62589]
[1723376068327,3.9253,2665.9,2665.7,2.62589]
[1723376068560,0.2,2665.4,2665.3,5.25268]
[1723376069069,3.9253,2665.4,2665.3,5.25268]
[1723376069481,4.0253,2665.4,2665.2,2.62638]
[1723376069632,4.0253,2665.4,2664.8,0.53599761]
[1723376069633,0.1,2665.1,2664.8,0.53599761]
[1723376069831,0.1,2665.1,2665.0,2.62664]
[1723376070043,0.1,2665.1,2665.0,5.25328]
[1723376070044,0.2,2665.1,2665.0,5.25328]
[1723376070267,0.1,2665.1,2665.0,5.25328]
[1723376070575,0.2,2665.3,2665.2,5.25288]
[1723376070936,0.2,2665.3,2665.2,7.87932]
[1723376071460,4.0253,2665.3,2665.2,5.25288]
[1723376071832,4.0253,2665.3,2665.2,2.62644]
[1723376072031,4.0253,2665.3,2665.1,2.62653]
[1723376072284,4.0253,2665.3,2665.2,2.62644]
[1723376072646,4.0253,2665.3,2665.1,2.62653]
[1723376072960,3.9253,2665.3,2665.1,2.62648]
[1723376073361,3.9253,2665.3,2664.9,2.62667]
[1723376073560,0.1,2664.8,2664.7,2.62688]
[1723376073775,0.1,2664.8,2664.5,2.62707]
[1723376073776,0.1,2664.6,2664.5,2.62707]
[1723376073989,0.2,2664.6,2664.5,2.62707]
[1723376075193,0.2,2664.6,2664.5,5.2542]
[1723376075505,0.2,2664.6,2664.5,2.62707]
[1723376076084,4.0253,2664.3,2664.2,5.25486]
[1723376078451,3.9253,2664.3,2664.2,5.25486]
[1723376080452,4.0253,2664.3,2664.2,5.25486]
[1723376080959,4.0253,2664.3,2664.2,2.62743]
[1723376081797,0.1,2664.3,2664.2,5.25486]
[1723376083103,0.2,2664.3,2664.2,5.25486]
[1723376083453,3.9209,2664.3,2664.2,5.25486]
[1723376084495,3.8209,2664.3,2664.2,5.25486]
[1723376085199,3.9209,2664.3,2664.2,5.25486]
[1723376087488,0.1,2664.3,2664.2,5.25486]
[1723376087673,0.1,2664.3,2664.2,8.670534]
[1723376087997,0.2,2664.5,2664.4,5.25446]
[1723376088200,0.2,2664.5,2664.4,6.1214574]
[1723376088374,0.2,2664.5,2664.4,5.25446]
[1723376089602,4.0522,2664.5,2664.4,2.62723]
[1723376090385,4.0522,2664.5,2663.6,2.62798]
[1723376090386,4.0522,2664.5,2664.3,2.62724]
[1723376090798,4.0522,2664.5,2663.8,2.62775]
[1723376090799,3.9522,2664.2,2664.1,2.62746]
[1723376090965,4.0522,2664.2,2664.1,2.62746]
[1723376092966,4.0522,2664.2,2664.0,5.25512]
[1723376093374,4.0522,2664.2,2663.8,2.62776]
[1723376093375,0.1,2663.9,2663.8,2.62776]
[1723376093605,0.1,2663.9,2663.8,5.25558]
[1723376093606,0.2,2663.9,2663.8,5.25558]
[1723376095190,0.1,2663.9,2663.8,5.25558]
[1723376095368,0.1,2663.9,2663.8,8.438958]
[1723376096083,0.2,2663.9,2663.8,5.811138]
[1723376096284,0.2,2663.9,2663.8,5.25558]
[1723376096519,4.0522,2663.9,2663.8,2.62776]
[1723376096736,4.0522,2663.9,2662.1,2.73927912]
[1723376096737,0.1,2663.6,2663.5,2.62812]
[1723376097384,0.2,2663.6,2663.5,2.62812]
[1723376097608,0.1,2663.6,2663.5,2.62812]
[1723376097821,0.1,2663.5,2663.4,5.25642]
[1723376097995,0.1,2663.5,2663.4,2.62821]
[1723376098790,3.9522,2663.5,2663.4,2.62821]
[1723376099112,3.9522,2663.5,2663.3,2.62829]
[1723376099113,0.1,2663.4,2663.3,2.62829]
[1723376099324,0.2,2663.1,2663.0,2.62854]
[1723376100189,0.2,2663.1,2663.0,5.25715]
[1723376100389,0.2,2663.1,2662.7,4.48544391]
[1723376100390,0.1,2663.5,2663.4,2.62821]
[1723376100590,0.1,2663.5,2663.4,5.25642]
[1723376101529,0.1,2663.5,2663.4,2.62821]
[1723376101690,3.7879,2663.5,2663.4,2.62821]
[1723376102022,3.7879,2663.5,2663.3,2.62825]
[1723376102230,3.7879,2663.5,2663.4,2.62821]
[1723376102387,3.7879,2663.5,2663.3,2.62825]
[1723376102388,0.1,2663.4,2663.3,2.62825]
[1723376102590,0.1,2663.4,2663.3,5.25656]
[1723376102794,0.1,2663.5,2663.4,5.25642]
[1723376103645,0.1,2663.5,2662.9,2.62871]
[1723376103646,0.1,2663.0,2662.9,2.62871]
[1723376103851,0.1,2663.0,2662.9,5.62871]
[1723376104006,0.1,2663.0,2662.9,9.42802344]
[1723376104208,0.1,2663.3,2663.2,5.25682]
[1723376104946,0.2,2663.3,2663.2,5.25682]
[1723376105130,0.1,2662.7,2662.6,2.62895]
[1723376105332,0.1,2662.7,2662.6,5.25795]
[1723376105653,7.3,2663.6,2662.6,5.25795]
[1723376105654,0.1,2663.3,2663.2,5.25682]
[1723376105941,0.1,2663.3,2663.2,7.88523]
[1723376106802,22.39743,2664.2,2663.5,2.62812]
[1723376106803,0.1,2663.7,2663.5,2.62812]
[1723376107008,0.1,2663.9,2663.8,7.88346]
[1723376107209,7.3,2664.2,2664.1,5.25504]
[1723376107210,7.4,2664.2,2664.1,5.25504]
[1723376107446,0.1,2664.2,2664.1,5.25504]
[1723376107632,4.0202,2664.5,2664.4,2.62723]
[1723376107821,7.10922,2664.5,2664.4,2.62723]
[1723376108022,7.10922,2664.5,2664.4,5.25446]
[1723376108220,0.2,2664.5,2664.4,5.25446]
[1723376108733,0.1,2664.5,2664.4,5.25446]
[1723376109246,0.2,2664.5,2664.4,5.25446]
[1723376109620,0.2,2664.9,2664.8,5.25366]
[1723376111255,0.2,2664.9,2664.8,7.88049]
[1723376111569,0.1,2665.1,2665.0,7.87992]
[1723376114335,0.1,2665.4,2664.8,3.6065]
[1723376114536,0.1,2665.5,2665.4,5.25248]
[1723376114760,0.1,2665.6,2665.5,5.25228]
[1723376114946,0.1,2665.6,2665.5,7.87842]
[1723376115262,0.2,2665.9,2665.8,5.2517]
[1723376116118,3.8202,2666.3,2666.0,5.2513]
[1723376116119,0.2,2666.1,2666.0,5.2513]
[1723376116673,0.2,2666.1,2666.0,7.87695]
[1723376117021,0.1,2666.1,2666.0,7.87695]
[1723376117447,0.2,2666.1,2666.0,8.664645]
[1723376117827,0.1,2666.1,2666.0,8.664645]
[1723376118021,0.1,2666.3,2666.0,8.664645]
[1723376118022,0.2,2666.3,2666.2,7.87635]
[1723376118950,0.2,2666.3,2666.2,5.2509]
[1723376119168,0.1,2666.5,2666.4,5.25052]
[1723376119379,0.2,2666.8,2666.7,5.24992]
[1723376120250,0.2,2666.8,2666.7,2.62496]
[1723376120887,0.2,2666.8,2666.7,5.24992]
[1723376122348,0.2,2666.8,2666.7,8.399872]
[1723376123880,0.2,2666.8,2666.7,5.24992]
[1723376126090,0.2,2666.8,2666.7,7.87488]
[1723376126249,0.2,2666.8,2666.7,5.24992]
[1723376126449,0.2,2666.8,2666.7,11.45518]
[1723376126771,0.1,2666.8,2666.7,11.45518]
[1723376126974,0.1,2666.8,2666.7,6.395438]
[1723376127347,0.1,2666.8,2666.7,9.020398]
[1723376128485,0.1,2666.8,2666.7,6.395438]
[1723376129530,0.1,2666.8,2666.7,9.020398]
[1723376129893,0.1,2666.8,2666.7,6.395438]
[1723376130052,0.1,2666.8,2666.7,2.62496]
[1723376130460,0.1,2666.8,2666.7,5.24992]
[1723376131588,0.1,2666.8,2666.7,5.34905204]
[1723376131754,0.1,2666.8,2666.7,2.72409204]
[1723376132088,0.2,2666.8,2666.7,0.09913204]
[1723376132289,4.06553467,2666.8,2666.7,0.09913204]
[1723376132453,4.06553467,2666.8,2666.5,2.62509]
[1723376132454,0.1,2666.6,2666.5,2.62509]
[1723376132991,0.2,2666.6,2666.5,2.62509]
[1723376133198,0.2,2666.6,2666.5,5.25025]
[1723376133405,0.2,2666.6,2666.5,5.775275]
[1723376135812,0.2,2666.6,2666.5,5.25025]
[1723376136209,0.2,2666.6,2666.5,2.62509]
[1723376136408,0.2,2666.6,2666.4,2.62525]
[1723376136704,0.2,2666.6,2666.5,0.09703094]
[1723376137068,3.5843,2666.6,2666.5,0.09703094]
[1723376137273,4.305224,2666.6,2666.5,0.09703094]
[1723376137585,0.2,2666.1,2666.0,5.25122]
[1723376138107,3.5843,2666.1,2666.0,2.62557]
[1723376138306,0.1,2665.9,2665.8,2.62579]
[1723376138515,0.2,2665.9,2665.8,2.62579]
[1723376139014,0.2,2665.9,2665.3,2.62631]
[1723376139015,0.1,2665.5,2665.4,2.62616]
[1723376139183,0.2,2665.5,2665.4,2.62616]
[1723376140014,0.2,2665.5,2665.4,5.2524]
[1723376141317,0.1,2665.5,2665.4,5.2524]
[1723376141488,0.1,2665.5,2665.4,6.040281]
[1723376141695,0.2,2665.5,2665.4,2.62616]
[1723376143143,0.1,2665.3,2665.2,2.62638]
[1723376143644,0.1,2665.3,2665.1,2.62653]
[1723376143645,3.664,2665.3,2665.1,2.62648]
[1723376143810,0.2,2665.0,2664.9,2.62668]
[1723376144008,0.1,2664.5,2664.1,2.62746]
[1723376144220,0.1,2664.3,2664.2,2.62743]
[1723376144622,0.2,2664.3,2664.2,2.62743]
[1723376144822,0.1,2664.3,2664.2,5.25486]
[1723376145294,0.2,2664.3,2664.2,5.25486]
[1723376146016,3.8801,2664.7,2664.2,0.525486]
[1723376146333,0.1,2664.7,2664.6,2.62703]
[1723376146505,0.1,2664.7,2664.6,5.25406]
[1723376146935,0.1,2664.7,2664.6,2.62703]
[1723376147137,0.2,2664.7,2664.6,5.779466]
[1723376148349,0.1,2664.7,2664.6,8.406496]
[1723376148657,0.1,2665.1,2664.6,3.152436]
[1723376148859,0.1,2665.1,2665.0,5.25328]
[1723376149066,0.1,2665.1,2665.0,5.32831728]
[1723376149261,0.2,2665.1,2665.0,5.32831731]
[1723376149571,0.1,2665.1,2665.0,5.25328]
[1723376149754,0.1,2665.1,2665.0,6.041277]
[1723376149923,0.1,2665.3,2665.0,0.86303615]
[1723376150134,0.1,2665.3,2665.2,7.87931]
[1723376150913,0.1,2665.4,2665.3,5.25268]
[1723376151156,0.1,2665.5,2665.4,5.25248]
[1723376151524,0.1,2665.5,2665.4,5.33549626]
[1723376151834,0.1,2665.5,2665.4,8.83294764]
[1723376151835,0.2,2665.5,2665.4,8.83294764]
[1723376152360,0.2,2665.9,2665.8,5.2517]
[1723376152748,0.2,2665.9,2665.8,5.33457266]
[1723376152920,0.2,2665.9,2665.8,8.49387993]
[1723376152921,0.1,2665.9,2665.8,8.49387993]
[1723376153117,0.2,2666.1,2666.0,5.2513]
[1723376153325,0.2,2666.1,2666.0,6.18344886]
[1723376153524,0.2,2666.1,2666.0,5.33410087]
[1723376154685,0.1,2666.1,2666.0,8.03477026]
[1723376159052,0.1,2666.5,2666.4,5.25052]
[1723376159478,0.1,2666.5,2666.4,5.33290877]
[1723376161761,0.1,2666.5,2666.4,2.70764877]
[1723376162337,0.1,2666.5,2666.4,5.33290877]
[1723376162554,0.1,2666.5,2666.4,2.70764877]
[1723376162931,0.1,2666.6,2666.5,2.62516]
[1723376163168,0.1,2666.6,2666.5,2.70751289]
[1723376163376,0.2,2666.6,2666.5,2.70751289]
[1723376163966,0.2,2666.6,2666.5,5.33267289]
[1723376165179,4.88171,2666.6,2666.5,0.08235289]
[1723376165386,0.1,2666.2,2666.1,2.62548]
[1723376165582,3.5537,2666.5,2666.1,2.70805622]
[1723376165880,3.7537,2665.8,2665.6,2.62603]
[1723376166373,0.1,2665.5,2665.4,2.62618]
[1723376166576,0.2,2665.5,2665.4,0.08008861]
[1723376166740,3.5281,2665.5,2665.0,2.62657]
[1723376166937,3.4281,2665.1,2665.0,2.62657]
[1723376167182,3.4281,2665.1,2664.8,2.62679]
[1723376167183,0.2,2664.9,2664.8,2.62679]
[1723376167351,0.2,2664.7,2664.6,2.627]
[1723376167761,0.1,2664.7,2664.6,5.25403]
[1723376168165,0.1,2664.9,2664.8,5.25366]
[1723376168746,0.1,2664.9,2664.8,5.779026]
[1723376169139,0.2,2664.9,2664.8,5.779026]
[1723376169382,0.2,2664.9,2664.8,2.62683]
[1723376169966,0.2,2664.9,2664.8,5.25366]
[1723376171850,0.2,2664.9,2664.8,7.88049]
[1723376171851,0.1,2664.9,2664.8,7.88049]
[1723376172047,3.4281,2665.3,2665.2,2.62644]
[1723376172249,0.2,2665.5,2665.4,5.25248]
[1723376172556,0.2,2665.5,2665.4,6.040369]
[1723376173550,0.2,2665.5,2665.4,8.666609]
[1723376173551,0.1,2665.5,2665.4,8.666609]
[1723376173947,0.1,2665.5,2665.4,6.040369]
[1723376174257,0.1,2665.5,2665.4,8.666609]
[1723376174643,0.2,2665.5,2665.4,6.040369]
[1723376174980,0.1,2665.5,2665.4,8.666609]
[1723376175273,0.1,2665.5,2665.4,6.040369]
[1723376175480,0.2,2665.7,2665.6,5.2521]
[1723376175648,0.1,2665.7,2665.6,5.2521]
[1723376175850,0.2,2665.7,2665.6,5.2521]
[1723376176549,0.2,2665.7,2665.6,2.62605]
[1723376176754,0.2,2665.7,2665.5,2.62611]
[1723376176951,0.2,2665.2,2665.1,2.6265]
[1723376177589,0.2,2665.2,2665.0,2.62664]
[1723376178420,0.2,2665.2,2665.1,2.62654]
[1723376178632,0.2,2665.2,2665.1,5.25308]
[1723376179496,0.2,2665.2,2665.1,8.404928]
[1723376179884,0.1,2665.2,2665.1,8.404928]
[1723376180080,0.2,2665.2,2665.1,8.404928]
[1723376180535,0.2,2665.2,2665.1,5.778388]
[1723376180822,0.1,2665.4,2665.3,7.87902]
[1723376181026,0.1,2665.4,2665.3,9.2447608]
[1723376181232,0.1,2665.4,2665.3,7.87902]
[1723376181618,0.1,2665.4,2665.3,5.3308567]
[1723376181619,0.2,2665.4,2665.3,5.3308567]
[1723376182155,7.4,2665.6,2665.5,5.25228]
[1723376182325,0.2,2665.9,2665.8,2.62585]
[1723376182535,0.1,2665.9,2665.8,2.62585]
[1723376182826,0.1,2665.9,2665.8,5.2517]
[1723376182984,0.1,2665.9,2665.8,5.32969719]
[1723376183186,0.1,2665.9,2665.8,7.95554719]
[1723376183403,0.1,2665.9,2665.8,8.75110191]
[1723376183926,0.1,2666.1,2666.0,5.2513]
[1723376184423,0.1,2666.1,2666.0,5.32922541]
[1723376185422,3.5219,2666.1,2666.0,0.07792541]
[1723376185620,3.5219,2666.1,2665.0,2.62663]
[1723376185621,0.2,2665.5,2665.0,2.62663]
[1723376185940,0.2,2665.5,2665.4,5.25248]
[1723376186443,0.2,2665.5,2665.4,5.3255446]
[1723376187516,0.2,2665.5,2665.4,2.6993046]
[1723376187752,3.6219,2665.5,2665.4,0.0730646]
[1723376188047,3.98409,2665.5,2665.3,2.62628]
[1723376188212,3.98409,2665.5,2665.2,2.62637]
[1723376188417,0.2,2665.3,2665.2,2.62637]
[1723376188619,0.1,2665.3,2665.2,2.69690923]
[1723376188818,0.2,2665.3,2665.2,0.07053923]
[1723376189006,0.1,2664.2,2664.1,2.62749]
[1723376189346,0.1,2664.2,2664.1,5.32594442]
[1723376189641,0.2,2664.4,2664.3,5.25466]
[1723376189841,0.2,2664.4,2664.3,8.74815498]
[1723376190217,0.1,2664.4,2664.3,8.74815498]
[1723376190727,0.2,2664.6,2664.5,7.88139]
[1723376190932,0.1,2664.6,2664.5,7.88139]
[1723376191141,0.2,2664.6,2664.5,7.94990897]
[1723376191362,0.1,2664.8,2664.7,5.25386]
[1723376191852,0.1,2664.8,2664.7,5.32230711]
[1723376192240,0.1,2664.9,2664.8,7.88049]
[1723376192418,0.1,2665.0,2664.9,5.25348]
[1723376192622,0.1,2665.0,2664.9,5.32185527]
[1723376193746,0.1,2665.0,2664.9,5.39689534]
[1723376193946,0.1,2665.0,2664.9,6.20372078]
[1723376194460,0.1,2665.0,2664.9,8.90550082]
[1723376194751,0.1,2665.0,2664.9,8.83046078]
[1723376195364,0.1,2665.0,2664.9,5.32185527]
[1723376196167,0.2,2665.2,2664.9,0.06837527]
[1723376196458,0.2,2665.2,2665.1,5.25308]
[1723376196820,0.2,2665.2,2665.1,5.32138344]
[1723376197019,0.2,2665.2,2665.1,6.11619278]
[1723376197220,0.2,2665.2,2665.1,5.32138344]
[1723376197822,0.2,2665.2,2665.1,2.69484344]
[1723376198022,3.8772,2665.2,2665.1,2.69484344]
[1723376198262,3.8772,2665.2,2665.1,2.62654]
[1723376198424,3.8772,2665.2,2665.1,2.69484344]
[1723376198624,3.8272,2665.2,2665.1,2.69484344]
[1723376198822,3.8272,2665.2,2665.1,0.06830344]
[1723376199488,3.8272,2665.2,2665.1,2.69484344]
[1723376200048,3.8272,2665.2,2665.1,0.06830344]
[1723376200244,3.8272,2665.2,2665.1,2.69484344]
[1723376200456,3.8272,2665.2,2665.1,5.32138344]
[1723376200758,3.8272,2665.2,2665.1,2.69484344]
[1723376201364,3.8272,2665.2,2665.1,5.32138344]
[1723376202435,0.15,2665.2,2665.1,5.32138344]
[1723376204466,0.15,2665.2,2665.1,5.85352178]
[1723376207938,3.5463,2665.5,2665.1,5.85352178]
[1723376207939,0.15,2665.4,2665.3,5.25268]
[1723376208282,0.15,2665.4,2665.3,5.3213545]
[1723376210980,0.15,2665.4,2665.3,5.25268]
[1723376211178,0.15,2665.4,2665.3,6.09381583]
[1723376211353,0.15,2665.4,2665.3,6.1623669]
[1723376215785,0.15,2665.4,2665.3,5.32123107]
[1723376216314,0.15,2665.4,2665.3,5.25268]
[1723376216805,0.15,2665.4,2665.3,7.87902]
[1723376217165,0.1,2665.4,2665.3,10.57391107]
[1723376217508,0.15,2665.8,2665.7,5.2519]
[1723376217865,0.15,2665.8,2665.7,5.32030746]
[1723376218302,0.05,2665.8,2665.7,5.32030746]
[1723376218486,0.15,2665.8,2665.7,5.32030746]
[1723376218699,0.15,2665.8,2665.7,6.11494321]
[1723376219609,0.15,2665.8,2665.7,6.18996376]
[1723376219967,0.05,2665.8,2665.7,6.18996376]
[1723376220172,0.05,2665.8,2665.7,8.81591376]
[1723376220372,0.1,2666.0,2665.9,7.87725]
[1723376220619,0.1,2666.0,2665.9,6.13303138]
[1723376220799,0.1,2666.0,2665.9,2.69380978]
[1723376221674,0.1,2666.0,2665.9,0.06805978]
[1723376221869,0.05,2665.7,2665.6,2.62598]
[1723376222065,3.7158,2665.7,2665.6,5.31992891]
[1723376222269,3.6158,2665.7,2665.6,5.31992891]
[1723376222580,0.05,2665.7,2665.6,5.31992891]
[1723376222791,0.15,2665.7,2665.6,5.31992891]
[1723376224196,0.05,2665.7,2665.6,5.31992891]
[1723376224682,0.15,2665.7,2665.6,5.31992891]
[1723376226513,0.15,2665.7,2665.6,6.1145428]
[1723376228196,0.15,2665.7,2665.6,5.31992891]
[1723376228579,3.8097,2665.7,2665.6,0.06789891]
[1723376228796,3.7097,2665.7,2665.6,0.06789891]
[1723376229086,0.15,2665.3,2665.2,2.62639]
[1723376229592,0.15,2665.3,2665.2,7.87927]
[1723376230215,0.15,2665.3,2665.2,5.25283]
[1723376231416,3.8097,2665.3,2665.2,2.62639]
[1723376231927,0.15,2665.3,2665.2,7.87927]
[1723376232137,0.15,2665.3,2665.2,6.397127]
[1723376232430,0.05,2665.3,2665.2,6.397127]
[1723376232586,0.15,2665.3,2665.2,6.397127]
[1723376232786,0.15,2665.3,2665.2,5.25283]
[1723376233536,0.05,2665.3,2665.2,5.25283]
[1723376234128,0.15,2665.3,2665.2,5.25283]
[1723376234312,0.05,2665.3,2665.2,7.87927]
[1723376234685,0.05,2665.3,2665.2,8.667197]
[1723376234891,0.1,2665.5,2665.4,7.87872]
[1723376235513,0.15,2665.5,2665.4,5.25248]
[1723376240855,0.15,2665.5,2665.4,7.87872]
[1723376241013,0.15,2665.5,2665.4,9.0080257]
[1723376241213,0.15,2665.5,2665.4,6.3817857]
[1723376241767,0.15,2665.5,2665.4,6.44775736]
[1723376242351,0.15,2665.5,2665.4,9.07399736]
[1723376242656,0.15,2665.5,2665.4,6.44775736]
[1723376245917,0.05,2666.1,2665.4,1.19527736]
[1723376246114,0.05,2666.1,2666.0,7.87695]
[1723376246352,0.05,2666.1,2666.0,7.94285869]
[1723376246526,0.1,2666.4,2666.0,0.06590869]
[1723376246725,0.1,2666.4,2666.3,7.87608]
[1723376246924,0.1,2666.4,2666.3,8.72932567]
[1723376247416,0.1,2666.4,2666.3,5.31635767]
[1723376250213,0.1,2666.4,2666.3,7.94171767]
[1723376250467,0.1,2666.4,2666.3,5.31635767]
[1723376251363,0.1,2666.4,2666.3,7.94171767]
[1723376251819,0.1,2666.4,2666.3,5.31635767]
[1723376252141,3.5259,2666.4,2666.3,5.31635767]
[1723376252327,3.5259,2666.4,2666.3,0.06563767]
[1723376252658,3.6759,2666.0,2665.9,2.62566]
[1723376252859,3.94349,2666.0,2665.8,5.25158]
[1723376253033,3.5759,2666.0,2665.9,2.69123371]
[1723376253565,3.6759,2666.0,2665.9,2.69123371]
[1723376253921,3.5759,2666.0,2665.9,2.69123371]
[1723376254117,3.6759,2666.0,2665.9,5.31698371]
[1723376254455,0.15,2666.0,2665.9,5.31698371]
[1723376254764,0.05,2666.0,2665.9,8.73702408]
[1723376254919,0.05,2666.0,2665.9,5.31698371]
[1723376255268,0.15,2666.0,2665.9,5.31698371]
[1723376256365,0.15,2666.0,2665.9,2.69123371]
[1723376257040,0.05,2666.0,2665.9,5.31698371]
[1723376257746,0.15,2666.0,2665.9,5.31698371]
[1723376259233,0.15,2666.0,2665.9,6.37385508]
[1723376259446,0.05,2666.0,2665.9,6.37385508]
[1723376259621,0.15,2666.0,2665.9,8.99960508]
[1723376259826,0.15,2666.0,2665.9,6.37385508]
[1723376260143,0.15,2666.0,2665.9,5.31698371]
[1723376261433,3.4845,2666.0,2665.9,5.31698371]
[1723376262269,0.15,2666.2,2666.1,5.2511]
[1723376262766,0.15,2666.2,2666.1,5.31637766]
[1723376263142,0.15,2666.2,2666.1,2.69082766]
[1723376263350,3.4845,2666.2,2666.1,2.69082766]
[1723376263673,3.4845,2666.2,2666.1,0.06527766]
[1723376263841,3.83295,2666.2,2666.1,0.06527766]
[1723376264046,3.4345,2665.9,2665.8,2.62579]
[1723376264470,3.3345,2665.9,2665.8,2.62579]
[1723376264638,3.4845,2665.9,2665.7,2.62594]
[1723376264841,0.05,2665.6,2665.5,2.62609]
[1723376265351,0.15,2665.6,2665.5,2.62609]
[1723376266036,0.05,2665.6,2665.5,2.62609]
[1723376266433,3.6758,2665.6,2665.5,2.62609]
[1723376266639,4.04338,2665.6,2665.5,2.62609]
[1723376267352,0.1,2665.5,2665.4,2.62621]
[1723376269379,0.15,2664.7,2664.6,5.25406]
[1723376271493,0.05,2664.7,2664.6,5.25406]
[1723376271694,0.15,2664.7,2664.6,5.32071827]
[1723376271839,0.15,2664.9,2664.8,5.25366]
[1723376272045,0.15,2664.9,2664.8,7.88049]
[1723376272479,0.15,2664.9,2664.8,7.94707642]
[1723376272686,0.15,2664.9,2664.8,5.32024642]
[1723376273543,0.15,2664.9,2664.8,8.79499925]
[1723376273745,0.15,2664.9,2664.8,6.16816925]
[1723376274391,0.15,2664.9,2664.8,8.79499925]
[1723376274548,0.1,2664.9,2664.8,8.79499925]
[1723376274857,0.1,2664.9,2664.8,12.25829925]
[1723376275651,0.1,2664.9,2664.8,8.79499925]
[1723376276598,0.05,2665.1,2665.0,5.25328]
[1723376276911,0.05,2665.3,2665.2,7.87932]
[1723376277271,0.15,2665.3,2665.2,7.94571918]
[1723376278713,0.15,2665.3,2665.2,5.31927918]
[1723376279854,3.7758,2665.3,2665.2,5.31927918]
[1723376280008,0.15,2665.3,2665.2,5.31927918]
[1723376283383,3.6256,2665.3,2665.2,0.06639918]
[1723376283629,3.98816,2665.3,2665.2,0.06639918]
[1723376283834,3.98816,2665.3,2665.0,2.62662]
[1723376283835,0.1,2665.1,2665.0,5.2532]
[1723376284121,0.1,2665.1,2665.0,2.69294573]
[1723376284122,0.15,2665.1,2665.0,2.69294573]
[1723376284343,0.15,2665.1,2665.0,0.06636573]
[1723376284499,3.7256,2665.1,2665.0,0.06636573]
[1723376284704,4.09816,2665.1,2665.0,0.06636573]
[1723376286135,0.1,2664.9,2664.8,2.62678]
[1723376286328,0.15,2664.6,2664.5,2.62709]
[1723376286493,0.05,2664.0,2663.9,3.21568992]
[1723376286691,0.15,2664.0,2663.9,5.25544]
[1723376286928,0.15,2664.0,2663.9,5.780984]
[1723376287233,0.15,2664.0,2663.9,2.62772]
[1723376287521,0.15,2664.0,2663.7,2.62788]
[1723376287522,0.15,2663.8,2663.7,2.62786]
[1723376288898,0.15,2663.8,2663.7,5.25578]
[1723376289229,0.15,2664.0,2663.9,5.25544]
[1723376289413,0.15,2664.0,2663.9,7.88316]
[1723376289590,0.15,2664.0,2663.9,6.13010141]
[1723376289790,0.15,2664.0,2663.9,5.25544]
[1723376291443,0.15,2664.0,2663.9,7.88316]
[1723376292201,0.15,2664.0,2663.9,5.25544]
[1723376293454,3.5703,2664.0,2663.9,5.25544]
[1723376294506,3.5703,2664.0,2663.9,2.62772]
[1723376294917,3.5703,2664.0,2663.8,2.62782]
[1723376295323,3.5703,2664.0,2663.8,5.25552]
[1723376295637,3.5703,2664.0,2663.6,2.62793]
[1723376295638,0.15,2663.7,2663.6,2.62793]
[1723376296308,0.05,2663.1,2663.0,2.62859]
[1723376296640,0.05,2663.1,2663.0,5.2572]
[1723376297322,0.05,2663.3,2663.2,5.25682]
[1723376297734,0.05,2663.3,2663.2,5.33190717]
[1723376297936,0.05,2663.3,2663.2,7.96031717]
[1723376298242,0.1,2663.4,2663.3,7.88493]
[1723376298403,0.15,2663.8,2663.7,5.25584]
[1723376299942,0.15,2663.8,2663.7,7.88376]
[1723376301536,0.15,2663.8,2663.7,5.25584]
[1723376301700,0.15,2663.8,2663.7,5.31694566]
[1723376302998,0.15,2663.8,2663.7,2.68902566]
[1723376303210,3.501,2663.8,2663.7,2.68902566]
[1723376303639,3.401,2663.8,2663.7,0.06110566]
[1723376303813,3.501,2663.8,2663.7,0.06110566]
[1723376304018,3.8411,2663.8,2663.6,2.62794]